bitfinex/quotes_ETHUSD_20251212
["timestamp","ask_amount","ask_price","bid_price","bid_amount"]
[1765514160925,0.4879,3243.1,3242.4,0.003]
[1765514161611,0.4879,3243.1,3242.2,3.57231444]
[1765514161612,0.4628,3242.5,3242.2,0.001]
[1765514161804,0.4628,3242.3,3242.2,0.488]
[1765514162004,0.4879,3242.9,3242.2,0.488]
[1765514162203,0.4879,3242.9,3242.2,0.491]
[1765514162413,3.5714646,3243.0,3242.2,3.57526171]
[1765514162726,3.5714646,3243.0,3242.2,3.57826171]
[1765514163129,3.5714646,3243.0,3242.3,3.08421116]
[1765514163328,3.0835646,3243.0,3242.3,3.08721116]
[1765514163731,3.08346951,3243.1,3242.3,3.08721116]
[1765514163945,3.57136951,3243.1,3242.3,3.08721116]
[1765514165339,6.65483902,3243.1,3242.3,3.08721116]
[1765514165546,0.4879,3243.0,3242.4,0.487]
[1765514166119,0.03081679,3242.9,3242.3,0.405504]
[1765514166314,0.03081679,3242.9,3242.4,0.487]
[1765514166621,0.51871679,3242.9,3242.4,0.487]
[1765514167148,3.08375477,3242.8,3242.4,0.487]
[1765514167318,0.4879,3242.7,3242.4,0.487]
[1765514167846,0.4879,3242.7,3242.2,0.001]
[1765514167847,0.4628,3242.5,3242.2,0.001]
[1765514169927,0.9507,3242.5,3242.2,0.001]
[1765514170342,0.4628,3242.3,3242.2,0.001]
[1765514172550,0.4879,3242.4,3242.2,0.001]
[1765514172752,0.4879,3242.6,3242.2,0.004]
[1765514172960,0.4728,3242.6,3242.2,0.004]
[1765514173121,3.0838716,3242.7,3242.2,0.004]
[1765514173122,0.4728,3242.5,3242.2,0.004]
[1765514175650,3.08365968,3242.9,3242.4,0.003]
[1765514175851,0.70932162,3242.8,3242.4,0.003]
[1765514176051,1.18212162,3242.8,3242.4,0.003]
[1765514177863,3.55664987,3242.7,3242.4,0.003]
[1765514178661,3.79310977,3242.8,3242.4,0.003]
[1765514178862,3.08378815,3242.8,3242.4,0.006]
[1765514179454,3.08378815,3242.8,3242.4,0.003]
[1765514179653,3.54738815,3242.8,3242.4,0.003]
[1765514180761,0.4678,3242.5,3242.2,0.001]
[1765514180960,3.54738815,3242.8,3242.2,0.001]
[1765514181142,3.54738815,3242.8,3242.4,0.003]
[1765514181537,0.4636,3242.7,3242.4,0.003]
[1765514181742,0.4678,3242.5,3242.2,0.001]
[1765514185933,3.08365968,3242.9,3242.4,0.003]
[1765514186133,3.08365968,3242.9,3242.6,0.003]
[1765514186635,0.4636,3243.2,3242.8,0.003]
[1765514186971,0.35467853,3243.2,3242.8,0.003]
[1765514187338,3.08330399,3243.3,3242.8,0.003]
[1765514187535,0.4636,3243.2,3242.8,0.003]
[1765514188373,3.54697499,3243.2,3242.8,0.003]
[1765514188532,0.4636,3243.2,3242.8,0.003]
[1765514188947,3.54699589,3243.2,3242.8,0.003]
[1765514189153,0.4678,3242.9,3242.4,3.57110428]
[1765514189595,0.4678,3242.9,3242.4,3.57410428]
[1765514189798,0.4678,3242.9,3242.5,0.003]
[1765514192649,0.4636,3243.1,3242.5,0.003]
[1765514193853,0.4636,3243.3,3242.5,0.003]
[1765514195562,0.4636,3243.3,3242.5,0.49]
[1765514195861,0.4636,3243.3,3242.5,1.15582395]
[1765514196182,3.54690597,3243.3,3242.6,3.08694498]
[1765514197677,0.4636,3243.3,3242.6,3.08694498]
[1765514197882,3.54689337,3243.3,3242.7,0.003]
[1765514198177,0.4636,3243.3,3242.7,0.003]
[1765514198382,0.4636,3243.3,3242.7,0.73237799]
[1765514198680,0.92576734,3243.7,3243.2,0.003]
[1765514198867,0.4636,3243.6,3243.2,0.003]
[1765514199480,0.4636,3243.8,3243.2,0.003]
[1765514199669,3.54643462,3243.8,3243.2,0.003]
[1765514201187,0.4636,3243.7,3243.2,0.003]
[1765514201584,0.4678,3243.3,3242.9,3.08363389]
[1765514201782,0.4678,3243.3,3243.0,0.487]
[1765514202182,0.9314,3243.3,3243.0,0.487]
[1765514203635,0.78067529,3243.9,3243.2,0.003]
[1765514203636,0.92569593,3243.8,3243.2,0.003]
[1765514203882,0.002,3243.9,3243.7,0.003]
[1765514204192,0.002,3243.9,3243.8,0.003]
[1765514204778,0.002,3243.9,3243.4,0.487]
[1765514204991,0.002,3243.9,3243.5,0.003]
[1765514205777,0.002,3243.9,3243.5,3.08608925]
[1765514207596,0.002,3243.9,3243.8,0.003]
[1765514209303,0.002,3243.9,3243.8,0.489]
[1765514209504,0.002,3243.9,3243.8,2.03056932]
[1765514209705,0.002,3243.9,3243.8,1.41439896]
[1765514209999,0.002,3243.9,3243.8,1.41739896]
[1765514210211,0.002,3243.9,3243.8,1.41439896]
[1765514210392,0.002,3243.9,3243.8,0.92839896]
[1765514210598,0.002,3243.9,3243.8,0.003]
[1765514211489,0.002,3243.9,3243.4,3.08317363]
[1765514211490,1.1188,3243.9,3243.4,3.08317363]
[1765514211690,0.4553,3243.8,3243.5,0.79531736]
[1765514211892,0.9283,3243.8,3243.5,1.41248175]
[1765514212091,0.9283,3243.8,3243.5,0.487]
[1765514212607,0.002,3243.9,3243.7,3.08589915]
[1765514212794,0.002,3243.9,3243.8,0.003]
[1765514212975,0.002,3243.9,3243.8,0.62318327]
[1765514213182,0.002,3243.9,3243.8,4.63140347]
[1765514215617,0.002,3243.9,3243.8,4.62840347]
[1765514215804,0.002,3243.9,3243.8,4.63140347]
[1765514216825,0.002,3243.9,3243.8,3.70598738]
[1765514217001,0.002,3243.9,3243.8,5.03684467]
[1765514217814,0.002,3243.9,3243.8,1.54553656]
[1765514218018,0.002,3243.9,3243.8,0.489]
[1765514218918,1.1188,3243.9,3243.5,3.08303576]
[1765514219118,1.1188,3243.9,3243.5,0.487]
[1765514219119,0.4553,3243.8,3243.5,0.487]
[1765514219309,0.6635,3243.9,3243.6,3.08293202]
[1765514219512,0.1905,3243.9,3243.6,3.08293202]
[1765514220823,0.6635,3243.9,3243.6,3.08293202]
[1765514221025,0.002,3243.9,3243.8,0.003]
[1765514221887,0.002,3243.9,3243.8,0.006]
[1765514222095,0.002,3243.9,3243.8,3.08880411]
[1765514223996,0.002,3243.9,3243.8,0.003]
[1765514224294,0.002,3243.9,3243.8,0.006]
[1765514224618,0.002,3243.9,3243.8,1.28606823]
[1765514226150,0.002,3243.9,3243.8,4.36887234]
[1765514226912,0.002,3243.9,3243.8,1.28306823]
[1765514227299,0.002,3243.9,3243.8,4.36587234]
[1765514228229,0.4573,3243.9,3243.8,1.28006823]
[1765514228448,1.1188,3243.9,3243.8,0.486]
[1765514228600,1.1188,3243.9,3243.6,3.56893057]
[1765514228799,0.4553,3243.7,3243.6,3.56893057]
[1765514229013,0.4553,3243.7,3243.6,4.32668847]
[1765514229957,0.9283,3243.7,3242.9,0.30836339]
[1765514230113,0.4553,3243.6,3243.0,0.486]
[1765514230320,0.9283,3243.6,3243.0,3.56953106]
[1765514230955,0.6635,3243.9,3243.0,3.0835646]
[1765514230956,0.4553,3243.1,3243.0,3.0835646]
[1765514231257,0.9283,3243.1,3243.0,3.0835646]
[1765514231426,0.4553,3243.1,3243.0,3.0835646]
[1765514232945,0.4745,3243.7,3243.0,6.86628798]
[1765514233243,0.4745,3243.6,3243.0,6.86628798]
[1765514234229,0.4745,3243.6,3243.0,3.0865646]
[1765514234738,0.4745,3243.6,3243.0,3.0835646]
[1765514234911,0.4633,3243.1,3243.0,3.0835646]
[1765514235763,0.9143,3243.1,3242.5,0.92571592]
[1765514236056,0.4687,3243.0,3242.6,0.487]
[1765514236365,0.9197,3243.0,3242.6,0.487]
[1765514236721,0.451,3242.9,3242.7,3.08378403]
[1765514237035,0.451,3242.9,3242.6,3.57091946]
[1765514239853,0.4687,3242.7,3242.6,3.57091946]
[1765514243556,0.451,3242.9,3242.6,3.57391946]
[1765514244752,0.4687,3242.7,3242.6,3.57091946]
[1765514244922,0.4687,3242.7,3242.6,0.487]
[1765514245120,0.9197,3242.7,3242.6,0.487]
[1765514247671,0.4687,3242.7,3242.6,0.487]
[1765514248456,0.9197,3242.7,3242.6,0.487]
[1765514249638,0.4687,3242.7,3242.6,0.487]
[1765514251347,0.9197,3242.7,3242.6,0.487]
[1765514260294,0.92587877,3243.1,3242.6,0.49]
[1765514260469,0.451,3243.0,3242.6,0.49]
[1765514260880,0.92587877,3243.1,3242.6,3.57393407]
[1765514261084,0.92587877,3243.1,3242.6,3.57693407]
[1765514261260,0.451,3243.0,3242.6,3.57393407]
[1765514261585,0.451,3243.0,3242.6,0.49]
[1765514262362,0.451,3243.0,3242.6,3.57393122]
[1765514264068,0.4592,3243.3,3242.9,0.003]
[1765514264270,1.43289058,3243.3,3242.9,0.003]
[1765514264680,0.4592,3243.2,3242.9,0.003]
[1765514265990,4.05697287,3243.3,3242.9,0.003]
[1765514266289,0.4592,3243.2,3242.9,0.003]
[1765514266890,0.4592,3243.2,3242.6,3.57093122]
[1765514268181,0.4592,3243.2,3242.6,3.57393122]
[1765514270895,0.4592,3243.2,3242.6,3.57093122]
[1765514274393,3.54257676,3243.2,3242.6,3.57093122]
[1765514275095,0.4592,3243.1,3242.6,3.57093122]
[1765514276995,3.54267347,3243.1,3242.6,0.487]
[1765514277201,0.468,3242.7,3242.6,0.487]
[1765514277698,0.4592,3242.9,3242.6,0.487]
[1765514278395,4.05697777,3243.3,3242.2,0.004]
[1765514278396,0.4592,3242.8,3242.2,0.004]
[1765514278597,0.4592,3243.3,3242.6,3.08394498]
[1765514278806,1.12456902,3243.3,3242.7,0.003]
[1765514279466,0.4592,3243.2,3242.7,0.003]
[1765514279906,0.4592,3243.2,3242.7,0.49]
[1765514280072,0.4592,3243.2,3242.7,0.493]
[1765514281905,0.4592,3243.2,3242.7,3.57682432]
[1765514282398,0.4592,3243.2,3242.7,6.66067419]
[1765514282697,0.4592,3243.2,3242.7,3.57682432]
[1765514287006,0.45796654,3243.2,3242.7,3.57682432]
[1765514287177,0.45796654,3243.2,3242.7,4.24291002]
[1765514290477,0.45796654,3243.2,3242.7,4.23991002]
[1765514291186,0.9257902,3243.7,3242.7,7.32375989]
[1765514291514,0.9257902,3243.7,3243.1,0.0043]
[1765514291515,0.4592,3243.5,3243.1,0.0043]
[1765514292178,3.08318431,3243.4,3242.8,0.0043]
[1765514292580,3.54238431,3243.4,3242.8,0.0043]
[1765514292890,0.4592,3243.4,3242.8,0.0043]
[1765514294780,0.4592,3243.4,3242.8,3.75391414]
[1765514296307,0.4592,3243.4,3242.9,0.487]
[1765514297409,3.54240108,3243.4,3242.9,0.487]
[1765514297912,0.4678,3243.6,3243.0,0.0043]
[1765514298100,0.58047529,3243.7,3242.9,0.487]
[1765514298101,0.4678,3243.5,3242.9,0.487]
[1765514298304,0.4887,3243.0,3242.9,0.91066293]
[1765514298498,0.4887,3243.0,3242.9,0.487]
[1765514298694,0.4887,3243.0,3242.3,0.37078808]
[1765514298695,0.9565,3243.0,3242.2,0.61229208]
[1765514298918,0.4887,3242.9,3242.2,1.09929208]
[1765514299208,4.04018941,3242.9,3242.2,3.57226066]
[1765514299583,0.4678,3242.8,3242.2,3.57226066]
[1765514299798,0.4678,3242.8,3242.2,4.23856591]
[1765514300002,3.08327937,3243.3,3242.7,0.0043]
[1765514300194,0.4678,3243.2,3242.7,0.0043]
[1765514301076,3.66359046,3243.5,3242.7,0.0043]
[1765514301299,4.13139046,3243.5,3242.7,3.08814987]
[1765514301488,0.4678,3243.4,3242.7,3.08814987]
[1765514301702,0.4678,3243.4,3242.7,0.0043]
[1765514303008,3.08327937,3243.3,3242.7,0.0043]
[1765514303716,0.4678,3243.2,3242.7,0.0043]
[1765514305314,0.4678,3243.2,3242.7,0.52467702]
[1765514306025,0.4678,3243.2,3242.7,3.6085052]
[1765514306615,3.5509237,3243.5,3242.7,3.6085052]
[1765514306916,3.5509237,3243.5,3242.8,0.0043]
[1765514307121,0.4678,3243.4,3242.7,3.6085052]
[1765514309225,3.55100864,3243.4,3242.7,3.6085052]
[1765514309427,3.55100864,3243.4,3242.7,3.08812818]
[1765514309628,0.4678,3243.3,3242.7,3.08812818]
[1765514313125,0.9257702,3243.8,3243.2,0.0043]
[1765514313126,3.08280411,3243.8,3243.2,0.0043]
[1765514313309,1.04827529,3243.7,3243.2,0.0043]
[1765514313744,0.4678,3243.6,3243.2,0.0043]
[1765514314926,3.08308925,3243.5,3243.2,0.0043]
[1765514315329,0.4678,3243.4,3243.2,0.0043]
[1765514315529,0.4887,3243.3,3243.0,0.487]
[1765514316112,0.9565,3243.3,3243.0,0.487]
[1765514316433,0.4887,3243.3,3243.0,0.487]
[1765514318135,0.9565,3243.3,3243.0,0.487]
[1765514319136,0.4887,3243.1,3243.0,0.487]
[1765514320211,3.08313257,3243.5,3243.0,0.4913]
[1765514320406,0.4678,3243.4,3243.0,0.4913]
[1765514321134,0.4678,3243.8,3243.3,0.0043]
[1765514321307,0.4678,3243.4,3243.0,0.487]
[1765514322407,0.4887,3243.1,3243.0,0.487]
[1765514323036,0.4678,3243.3,3243.0,0.487]
[1765514323237,0.4678,3243.3,3243.0,0.84407283]
[1765514325339,0.4699,3243.1,3243.0,0.84407283]
[1765514325642,0.4678,3243.3,3243.0,0.487]
[1765514325817,0.4678,3243.3,3243.0,0.4913]
[1765514331145,0.4678,3243.3,3243.0,0.487]
[1765514332840,3.08289992,3243.7,3243.0,0.487]
[1765514333046,0.4597,3243.6,3243.0,3.57056101]
[1765514333218,0.4597,3243.6,3243.0,3.92804711]
[1765514333405,0.4597,3243.6,3243.0,0.487]
[1765514334629,3.54276855,3243.6,3243.0,0.487]
[1765514335138,0.4597,3243.5,3243.0,0.487]
[1765514336734,3.54282528,3243.5,3243.0,0.487]
[1765514337140,0.4597,3243.4,3243.0,0.487]
[1765514338340,0.4699,3243.1,3243.0,0.487]
[1765514339741,0.4597,3243.3,3243.0,0.487]
[1765514341336,0.4699,3243.1,3242.7,3.08382173]
[1765514341529,0.4699,3243.1,3242.8,0.486]
[1765514341718,0.9296,3243.1,3242.8,0.486]
[1765514342222,0.4597,3243.0,3242.8,0.486]
[1765514346458,0.4597,3243.3,3242.9,0.0043]
[1765514347473,0.4597,3243.5,3242.9,0.0086]
[1765514349232,0.4597,3243.5,3242.9,3.80852117]
[1765514349766,0.4597,3243.5,3242.8,0.486]
[1765514349767,0.4699,3243.0,3242.8,0.486]
[1765514350059,0.4699,3243.0,3242.8,3.56974288]
[1765514350772,0.4699,3243.0,3242.8,0.486]
[1765514351336,0.9296,3243.0,3242.8,0.486]
[1765514352760,0.9296,3243.0,3242.7,3.08382839]
[1765514353059,0.9296,3243.0,3242.8,0.486]
[1765514353798,0.4586,3242.9,3242.8,0.486]
[1765514358168,0.9307,3242.9,3242.5,3.08399715]
[1765514358374,0.4933,3242.7,3242.5,3.56999715]
[1765514359740,0.4721,3242.8,3242.5,3.56999715]
[1765514359936,0.4721,3242.8,3242.5,4.23541788]
[1765514362072,0.4721,3243.1,3242.7,0.0043]
[1765514365996,0.4721,3243.1,3242.5,3.56999715]
[1765514375453,0.4721,3243.1,3242.5,6.65403724]
[1765514375653,0.4721,3243.1,3242.5,6.65833724]
[1765514375873,0.4721,3243.1,3242.6,0.66583372]
[1765514376868,0.4721,3243.1,3242.6,3.75399706]
[1765514378088,0.4721,3243.1,3242.6,3.74969706]
[1765514378310,0.4721,3243.1,3242.6,3.08386334]
[1765514378471,0.4721,3243.1,3242.5,3.57002344]
[1765514378472,3.5555872,3243.1,3242.5,3.57002344]
[1765514378663,0.4721,3243.1,3242.5,3.57002344]
[1765514378961,0.4721,3243.0,3242.5,3.57002344]
[1765514380096,0.4721,3243.3,3242.5,6.65406353]
[1765514380299,0.4721,3243.3,3242.6,0.66540635]
[1765514380913,0.4721,3243.3,3242.7,3.08384987]
[1765514384101,0.4721,3243.3,3242.6,6.17213373]
[1765514385712,0.4721,3243.3,3242.6,3.08818875]
[1765514386489,0.4721,3243.3,3242.6,6.17213373]
[1765514387216,0.4721,3243.3,3242.6,3.08818875]
[1765514388904,0.4721,3243.3,3242.6,6.17213373]
[1765514391369,0.4721,3243.3,3242.6,3.08388875]
[1765514391577,3.55538036,3243.3,3242.6,3.08388875]
[1765514392111,0.4563,3243.2,3242.6,3.08388875]
[1765514392405,0.4563,3243.2,3242.6,3.84186307]
[1765514400128,0.4563,3243.2,3242.6,6.93010805]
[1765514400297,0.9423,3243.4,3242.7,0.0043]
[1765514401123,0.92582162,3243.5,3242.7,5.71150675]
[1765514401296,1.38212162,3243.5,3242.7,5.71150675]
[1765514401624,0.4563,3243.5,3242.8,1.19223405]
[1765514401994,0.4563,3243.5,3242.9,3.08365968]
[1765514403130,0.4563,3243.5,3242.9,3.56965968]
[1765514403308,0.4563,3243.5,3242.9,3.57395968]
[1765514403633,1.69667693,3243.9,3243.4,0.0043]
[1765514403935,0.82466769,3243.8,3243.0,0.0043]
[1765514404232,3.08289915,3243.7,3243.0,0.0043]
[1765514404414,3.53919915,3243.7,3243.0,0.0043]
[1765514404729,0.4563,3243.6,3243.0,0.0043]
[1765514406863,0.4563,3243.8,3243.0,0.0043]
[1765514407006,0.4563,3243.8,3243.1,0.44996499]
[1765514407206,0.4563,3243.8,3243.1,1.37558666]
[1765514407705,0.58047529,3243.7,3243.1,1.37558666]
[1765514408341,4.11973567,3243.7,3243.1,1.37558666]
[1765514410144,4.11973567,3243.7,3243.1,1.37988666]
[1765514410324,4.11973567,3243.7,3243.2,0.44634352]
[1765514411536,0.4563,3243.6,3243.2,0.44634352]
[1765514412237,0.4563,3243.6,3243.1,0.92562167]
[1765514412737,3.08308925,3243.5,3242.9,0.4903]
[1765514413110,3.08308925,3243.5,3243.0,0.92565308]
[1765514413311,3.53568925,3243.5,3243.0,0.92565308]
[1765514413511,0.4526,3243.4,3243.0,0.92565308]
[1765514413732,0.4526,3243.4,3243.1,0.4499609]
[1765514414132,3.53562415,3243.6,3243.1,0.4499609]
[1765514414821,0.4526,3243.5,3243.1,0.4499609]
[1765514417241,3.53570491,3243.5,3242.9,0.486]
[1765514417544,3.53570491,3243.5,3242.9,1.41167308]
[1765514417940,3.53570491,3243.5,3242.9,1.41597308]
[1765514418115,3.5665217,3243.5,3242.9,1.41597308]
[1765514418313,0.4589,3243.4,3242.9,1.37564559]
[1765514418546,0.4589,3243.4,3242.9,0.93597251]
[1765514418952,0.4589,3243.4,3242.9,0.94027251]
[1765514419150,0.4589,3243.4,3242.9,4.02392849]
[1765514419751,0.4589,3243.4,3242.9,0.94027251]
[1765514420329,0.4589,3243.4,3243.0,0.49496987]
[1765514423527,0.4589,3243.4,3242.9,0.4903]
[1765514423928,0.4589,3243.4,3242.9,3.57395964]
[1765514424655,3.54170605,3243.8,3243.3,0.0043]
[1765514425025,0.4589,3243.7,3243.3,0.0043]
[1765514425237,0.4861,3243.4,3243.0,4.0091691]
[1765514425437,0.4861,3243.4,3243.1,0.44951691]
[1765514425868,0.4861,3243.2,3243.1,0.44951691]
[1765514426064,0.4589,3243.3,3243.1,0.44951691]
[1765514428161,3.08306133,3243.6,3243.1,0.44951691]
[1765514428362,0.4589,3243.5,3243.0,3.56953789]
[1765514429069,0.4589,3243.5,3243.0,3.56956082]
[1765514429275,0.4589,3243.5,3243.1,3.08344279]
[1765514431275,3.08283133,3243.8,3243.0,3.56952832]
[1765514431574,0.4589,3243.4,3243.0,4.49518426]
[1765514431754,0.4589,3243.4,3243.1,0.75788344]
[1765514432371,0.4589,3243.6,3243.1,3.84134505]
[1765514442483,0.4589,3243.6,3243.1,3.84564505]
[1765514443156,3.74774579,3243.9,3243.1,6.92481456]
[1765514443354,3.74774579,3243.9,3243.2,0.0043]
[1765514443783,0.4745,3243.8,3243.2,0.0043]
[1765514443987,0.4745,3243.8,3243.2,0.83838563]
[1765514444356,3.55731579,3243.8,3243.2,3.92174472]
[1765514444857,3.08281579,3243.8,3243.2,3.92174472]
[1765514445158,0.1905,3243.9,3243.2,4.84310066]
[1765514445159,0.4745,3243.7,3243.2,4.84310066]
[1765514445555,0.4745,3243.7,3243.2,4.84740066]
[1765514449791,3.74772115,3243.9,3243.3,0.0043]
[1765514450087,0.4745,3243.8,3243.2,4.00901503]
[1765514450661,0.4745,3243.8,3243.2,6.17103353]
[1765514450856,0.4745,3243.8,3243.3,0.92562167]
[1765514451412,0.002,3243.9,3243.7,0.0043]
[1765514451561,0.002,3243.9,3243.8,0.0086]
[1765514451889,0.002,3243.9,3243.8,3.08710411]
[1765514452505,0.002,3243.9,3243.8,3.80139489]
[1765514452796,0.002,3243.9,3243.8,4.72686807]
[1765514453383,0.002,3243.9,3243.8,4.72256807]
[1765514453585,0.9577,3243.9,3243.8,1.63546396]
[1765514453788,0.9577,3243.9,3243.5,3.08302658]
[1765514454094,0.4812,3243.6,3243.5,3.08302658]
[1765514454463,0.4745,3243.8,3243.5,3.08302658]
[1765514454675,0.4745,3243.8,3243.5,3.56422658]
[1765514454870,0.4745,3243.8,3243.5,3.08302658]
[1765514455085,0.4745,3243.8,3243.6,1.28241867]
[1765514455802,0.4812,3243.7,3243.6,4.36541287]
[1765514456388,0.1851,3243.9,3243.6,4.36971287]
[1765514457310,0.002,3243.9,3243.6,4.36971287]
[1765514459909,0.002,3243.9,3243.6,7.45270707]
[1765514460078,0.002,3243.9,3243.7,0.74527071]
[1765514460277,0.002,3243.9,3243.8,0.0043]
[1765514460477,0.002,3243.9,3243.8,3.09140411]
[1765514462420,0.002,3243.9,3243.8,3.08710411]
[1765514468919,0.002,3243.9,3243.8,3.09140411]
[1765514469113,0.002,3243.9,3243.8,4.74453446]
[1765514469496,0.002,3243.9,3243.8,5.22623446]
[1765514489726,0.002,3243.9,3243.8,4.49857729]
[1765514501354,0.002,3243.9,3243.8,10.20067449]
[1765514501643,0.002,3243.9,3243.8,10.60617849]
[1765514502147,0.002,3243.9,3243.8,4.01257729]
[1765514502352,0.002,3243.9,3243.8,4.49427729]
[1765514502353,0.4615,3243.9,3243.8,4.49427729]
[1765514502649,0.002,3243.9,3243.8,5.36222178]
[1765514503437,1.1556,3243.9,3243.8,4.00827729]
[1765514503743,1.1556,3243.9,3243.2,3.08337206]
[1765514503927,0.4657,3243.3,3243.2,3.08337206]
[1765514504127,0.4657,3243.3,3243.1,3.08343955]
[1765514504329,0.4657,3243.2,3243.1,3.08343955]
[1765514504535,0.4657,3243.2,3243.1,3.57233955]
[1765514504748,0.9546,3243.2,3243.1,3.57233955]
[1765514505964,0.9546,3243.2,3243.1,3.08343955]
[1765514508938,0.4657,3243.2,3243.1,3.08343955]
[1765514509235,0.201,3243.9,3243.1,6.83651756]
[1765514509452,0.6899,3243.9,3243.1,6.84081756]
[1765514509958,0.4889,3243.8,3243.1,6.84081756]
[1765514511836,0.4889,3243.8,3243.1,6.83651756]
[1765514524675,0.4657,3243.2,3243.1,3.08343955]
[1765514525171,0.4657,3243.2,3243.1,3.08346951]
[1765514525386,0.9546,3243.2,3242.9,0.486]
[1765514525595,0.4657,3243.0,3242.9,0.486]
[1765514526489,0.4657,3243.0,3242.9,3.56963271]
[1765514528186,0.4889,3243.2,3242.9,6.65329239]
[1765514528359,0.4889,3243.6,3243.1,0.0043]
[1765514529181,0.4889,3243.6,3242.9,6.65329239]
[1765514529386,0.4657,3243.0,3242.9,3.08363271]
[1765514529567,0.9546,3243.0,3242.9,3.56963271]
[1765514531385,0.4657,3243.0,3242.9,3.08363271]
[1765514531593,0.4657,3243.0,3242.9,3.56963271]
[1765514532064,0.4889,3243.2,3242.9,3.56963271]
[1765514534875,0.4862,3243.0,3242.9,0.486]
[1765514535382,0.9704,3243.0,3242.9,0.486]
[1765514536077,0.9704,3243.0,3242.9,3.56965968]
[1765514536852,4.34841694,3243.9,3242.9,13.02946628]
[1765514537181,0.4842,3243.8,3243.0,0.37078808]
[1765514537484,0.4842,3243.8,3243.0,0.37508808]
[1765514537984,0.4842,3243.8,3243.1,0.0043]
[1765514538592,0.4842,3243.8,3243.1,0.76937578]
[1765514538762,0.4842,3243.8,3243.2,0.486]
[1765514539154,0.4672,3243.3,3243.2,3.56937198]
[1765514540077,0.4842,3243.6,3243.2,3.57367198]
[1765514541668,0.4672,3243.3,3243.2,0.486]
[1765514541870,0.9514,3243.3,3243.2,0.486]
[1765514542367,0.4672,3243.3,3243.2,3.92631912]
[1765514542782,0.4842,3243.5,3243.2,3.92631912]
[1765514543475,0.4842,3243.5,3242.9,0.6653504]
[1765514543476,0.4672,3243.3,3242.9,0.6653504]
[1765514543677,0.4672,3243.0,3242.7,3.4892762]
[1765514543885,0.4672,3243.0,3242.8,0.486]
[1765514544096,0.4842,3243.2,3242.8,0.486]
[1765514544588,0.4672,3242.9,3242.1,0.001]
[1765514544769,0.4842,3243.2,3242.3,3.08422181]
[1765514544969,0.4842,3243.1,3242.4,0.486]
[1765514545585,0.4842,3243.1,3242.5,3.08404009]
[1765514545904,0.4842,3243.1,3242.5,6.16808018]
[1765514546280,3.56915049,3243.5,3242.5,6.8334882]
[1765514546499,4.05335049,3243.5,3242.5,6.16808018]
[1765514546706,0.4842,3243.4,3242.5,6.16808018]
[1765514546999,0.4842,3243.4,3242.6,0.0043]
[1765514547573,0.4842,3243.7,3242.7,0.405504]
[1765514547774,0.4842,3243.7,3242.8,0.4903]
[1765514547981,0.4842,3243.7,3242.8,0.86108808]
[1765514548180,0.4842,3243.7,3242.9,0.0043]
[1765514549605,0.4842,3243.7,3242.9,6.17161936]
[1765514553106,0.201,3243.9,3242.9,6.17161936]
[1765514553107,0.201,3243.9,3243.6,0.0043]
[1765514553299,0.4842,3243.7,3243.2,0.486]
[1765514553699,0.4842,3243.7,3243.3,3.08327937]
[1765514554405,0.4672,3243.3,3243.2,0.486]
[1765514554904,0.4672,3243.3,3243.2,3.56937444]
[1765514555103,0.4842,3243.5,3243.2,3.56937444]
[1765514556007,0.201,3243.9,3243.2,3.56937444]
[1765514556211,0.4842,3243.8,3243.2,3.56937444]
[1765514557812,0.6852,3243.9,3243.2,7.31846188]
[1765514558011,0.6852,3243.9,3243.2,7.32276188]
[1765514564122,0.6852,3243.9,3243.2,7.31846188]
[1765514564322,0.6852,3243.9,3243.2,7.32276188]
[1765514566923,0.6852,3243.9,3243.3,0.0043]
[1765514567295,0.6852,3243.9,3243.3,0.46142001]
[1765514568122,0.6852,3243.9,3243.4,3.08318431]
[1765514568322,0.6852,3243.9,3243.4,6.16636862]
[1765514568620,0.6852,3243.9,3243.4,6.17066862]
[1765514568923,0.6852,3243.9,3243.4,3.08748431]
[1765514569096,0.4746,3243.8,3243.4,3.08318431]
[1765514570317,0.4746,3243.8,3243.3,3.08325913]
[1765514571328,0.4746,3243.8,3243.3,6.1665385]
[1765514573627,0.4746,3243.8,3243.3,6.1708385]
[1765514578499,0.201,3243.9,3243.7,0.0043]
[1765514578500,0.002,3243.9,3243.7,0.0043]
[1765514579094,0.4766,3243.9,3243.7,0.0043]
[1765514579598,0.4766,3243.9,3243.4,0.0043]
[1765514581825,0.4766,3243.9,3243.3,6.1665385]
[1765514581826,0.6697,3243.9,3243.3,6.1665385]
[1765514582121,0.6697,3243.9,3242.7,1.50601414]
[1765514582122,0.4681,3243.4,3242.7,1.50601414]
[1765514582325,0.6697,3243.9,3242.8,0.52960141]
[1765514582326,1.08589208,3243.8,3242.8,0.52960141]
[1765514582528,1.08589208,3243.8,3242.2,0.37178808]
[1765514582529,0.486,3243.6,3242.4,3.0840931]
[1765514582913,0.486,3243.6,3242.3,0.486]
[1765514582914,0.4681,3242.5,3242.3,0.486]
[1765514583106,0.4681,3242.4,3242.3,0.486]
[1765514583303,0.4681,3242.4,3242.3,3.57021108]
[1765514583507,0.4746,3242.6,3242.3,3.57021108]
[1765514594547,0.4746,3242.6,3242.3,6.65444141]
[1765514594841,0.4746,3242.6,3242.3,7.92791181]
[1765514595013,0.4746,3242.6,3242.3,4.84368148]
[1765514604055,0.4827,3242.9,3242.5,0.0043]
[1765514606562,0.4827,3243.2,3242.8,0.0043]
[1765514606729,0.83928843,3243.2,3242.8,0.0043]
[1765514606934,0.4827,3243.5,3243.1,0.0043]
[1765514607133,0.4827,3243.8,3243.1,0.4903]
[1765514607364,0.4827,3243.7,3243.1,0.4903]
[1765514609045,0.4827,3243.7,3243.2,6.16674888]